fUSD/lending_fUSD_20250123
["ID","MTS","AMOUNT","RATE_DAILY","PERIOD"]
[350089544,1737613845232,-500.0,0.00019299,2]
[350089545,1737613845241,-500.0,0.00019299,2]
[350089546,1737613845255,-500.0,0.00019299,2]
[350089547,1737613845266,-500.0,0.00019299,2]
[350089548,1737613845275,-500.0,0.00019299,2]
[350089549,1737613845285,-618.08,0.00019299,2]
[350089550,1737613845295,-516.93130248,0.00019299,2]
[350089551,1737613845306,-500.0,0.00019299,2]
[350089552,1737613845317,-642.51,0.00019299,2]
[350089553,1737613845326,-679.95,0.00019299,2]
[350089554,1737613845335,-524.55,0.00019299,2]
[350089555,1737613845346,-500.0,0.00019299,2]
[350089556,1737613845355,-1167.04,0.00019299,2]
[350089557,1737613845364,-500.0,0.00019299,2]
[350089558,1737613845373,-500.0,0.00019299,2]
[350089559,1737613845384,-1471.27,0.00019299,2]
[350089560,1737613845393,-500.0,0.00019299,2]
[350089561,1737613845403,-500.0,0.00019299,2]
[350089562,1737613845412,-500.0,0.00019299,2]
[350089563,1737613845421,-660.81,0.00019299,2]
[350089564,1737613845431,-515.30997632,0.00019299,2]
[350089565,1737613845440,-500.0,0.00019299,2]
[350089566,1737613845449,-2001.0,0.00019299,2]
[350089567,1737613845458,-1278.3,0.00019299,2]
[350089568,1737613845468,-249.89811632,0.00019299,2]
[350089569,1737613845477,-1530.9,0.00019299,2]
[350089570,1737613845486,-500.0,0.00019299,2]
[350089571,1737613845496,-500.0,0.00019299,2]
[350089572,1737613845505,-500.0,0.00019299,2]
[350089573,1737613845514,-706.16,0.00019299,2]
[350089574,1737613845524,-2383.33,0.00019299,2]
[350089575,1737613845533,-500.0,0.00019299,2]
[350089576,1737613845543,-957.29,0.00019299,2]
[350089577,1737613845552,-979.72,0.00019299,2]
[350089579,1737613845561,-500.0,0.00019299,2]
[350089580,1737613845570,-1357.23,0.00019299,2]
[350089581,1737613845579,-500.0,0.00019299,2]
[350089582,1737613845588,-1075.31,0.00019299,2]
[350089583,1737613845597,-500.0,0.00019299,2]
[350089584,1737613845606,-500.0,0.00019299,2]
[350089585,1737613845615,-3854.94,0.00019299,2]
[350089586,1737613845624,-867.83,0.00019299,2]
[350089587,1737613845634,-500.0,0.00019299,2]
[350089588,1737613845643,-1000.0,0.00019299,2]
[350089589,1737613845653,-596.32136742,0.00019299,2]
[350089590,1737613845662,-791.21,0.00019299,2]
[350089591,1737613845671,-915.53,0.00019299,2]
[350089592,1737613845681,-500.0,0.00019299,2]
[350089593,1737613845690,-500.0,0.00019299,2]
[350089594,1737613845698,-500.0,0.00019299,2]
[350089595,1737613845707,-500.0,0.00019299,2]
[350089596,1737613845716,-500.0,0.00019299,2]
[350089597,1737613845725,-500.0,0.00019299,2]
[350089598,1737613845734,-1998.16,0.00019299,2]
[350089599,1737613845743,-500.0,0.00019299,2]
[350089600,1737613845755,-1692.2,0.00019299,2]
[350089601,1737613845765,-500.0,0.00019299,2]
[350089602,1737613845774,-500.0,0.00019299,2]
[350089603,1737613845782,-500.0,0.00019299,2]
[350089604,1737613845791,-718.96,0.00019299,2]
[350089605,1737613845800,-329.99688381,0.00019299,2]
[350089606,1737613845809,-631.51,0.00019299,2]
[350089607,1737613845818,-1220.62,0.00019299,2]
[350089608,1737613845828,-500.0,0.00019299,2]
[350089609,1737613845837,-500.0,0.00019299,2]
[350089610,1737613845847,-500.0,0.00019299,2]
[350089611,1737613845856,-897.49,0.00019299,2]
[350089612,1737613845865,-500.0,0.00019299,2]
[350089613,1737613845874,-500.0,0.00019299,2]
[350089614,1737613845883,-500.0,0.00019299,2]
[350089615,1737613845892,-1433.43,0.00019299,2]
[350089616,1737613845901,-500.0,0.00019299,2]
[350089617,1737613845910,-500.0,0.00019299,2]
[350089618,1737613845919,-500.0,0.00019299,2]
[350089619,1737613845928,-480.88947308,0.00019299,2]
[350089620,1737613845937,-507.55,0.00019299,2]
[350089621,1737613845946,-500.0,0.00019299,2]
[350089622,1737613845956,-500.0,0.00019299,2]
[350089623,1737613845965,-500.0,0.00019299,2]
[350089624,1737613845974,-509.69,0.00019299,2]
[350089625,1737613845983,-500.0,0.00019299,2]
[350089626,1737613845992,-500.0,0.00019299,2]
[350089627,1737613846004,-500.0,0.00019299,2]
[350089628,1737613846013,-500.0,0.00019299,2]
[350089629,1737613846022,-500.0,0.00019299,2]
[350089630,1737613846031,-637.9,0.00019299,2]
[350089631,1737613846043,-500.0,0.00019299,2]
[350089632,1737613846053,-500.0,0.00019299,2]
[350089633,1737613846062,-500.0,0.00019299,2]
[350089634,1737613846071,-733.72,0.00019299,2]
[350089635,1737613846081,-486.951562,0.00019299,2]
[350089636,1737613846090,-500.0,0.00019299,2]
[350089637,1737613846099,-1046.02,0.00019299,2]
[350089638,1737613846108,-500.0,0.00019299,2]
[350089639,1737613846117,-1233.99,0.00019299,2]
[350089640,1737613846126,-596.89,0.00019299,2]
[350089641,1737613846135,-2003.65,0.00019299,2]
[350089642,1737613846144,-500.0,0.00019299,2]
[350089643,1737613846154,-500.0,0.00019299,2]
[350089644,1737613846162,-500.0,0.00019299,2]
[350089645,1737613846172,-4211.52,0.00019299,2]
[350089646,1737613846181,-500.0,0.00019299,2]
[350089647,1737613846190,-500.0,0.00019299,2]
[350089648,1737613846199,-500.0,0.00019299,2]
[350089649,1737613846208,-813.44,0.00019299,2]
[350089650,1737613846217,-604.95,0.00019299,2]
[350089651,1737613846227,-539395.80719606,0.000193,4]
[350089652,1737613846429,-11587.0,0.000193,4]
[350089653,1737613846618,-3750.0,0.000193,4]
[350089654,1737613846630,-4134.34806013,0.000193,4]
[350089655,1737613846740,-680.01930449,0.000193,4]
[350089656,1737614200687,1000.0,0.00022,120]
[350089659,1737614624567,-475.34,0.00010137,2]
[350089660,1737614746115,-193.37,0.00012329,2]
[350089661,1737614746137,-30.70709347,0.0001468,2]
[350089662,1737614751095,-182.30099419,0.0001468,2]
[350089663,1737614751116,-27.14552615,0.00014745,2]
[350089666,1737614827102,-148.01447385,0.00014745,2]
[350089667,1737614827124,-104.07589684,0.00015,2]
[350089668,1737614834088,-445.92410316,0.00015,2]
[350089669,1737614834110,-43.7048059,0.00016095,2]
[350089670,1737614834225,-324.77686379,0.00016095,2]
[350089671,1737614842105,-576.01833031,0.00016095,2]
[350089672,1737614842133,-475.34,0.00016813,2]
[350089673,1737614842159,-600.0,0.00017,2]
[350089674,1737614842185,-245.0,0.000174,5]
[350089675,1737614842209,-151.0,0.00017834,2]
[350089676,1737614842233,-232.49,0.00017883,2]
[350089677,1737614842258,-1163.84026335,0.00018,7]
[350089678,1737614849129,-243.48403454,0.00018,7]
[350089679,1737614849158,-907.15104083,0.00018,7]
[350089680,1737615032031,-300.0,0.00017999,2]
[350089681,1737615032041,-3499.37093081,0.00018,7]
[350089682,1737615032066,-9880.86873443,0.00018,7]
[350089683,1737615032076,-1000.0,0.00018,18]
[350089684,1737615032085,-250.0,0.00018159,2]
[350089685,1737615032094,-250.0,0.00018159,2]
[350089686,1737615032103,-500.0,0.00018164,2]
[350089687,1737615032114,-1000.0,0.00018226,2]
[350089688,1737615032124,-184.82,0.00018296,30]
[350089689,1737615032133,-502.59,0.00018357,2]
[350089690,1737615032142,-944.5,0.00018359,2]
[350089691,1737615032152,-1359.53,0.00018366,2]
[350089692,1737615032161,-8356.89022654,0.00018387,2]
[350089693,1737615032179,-1925.13,0.00018387,2]
[350089694,1737615032191,-294.33656805,0.00018387,2]
[350089695,1737615032202,-5283.57265998,0.00018387,2]
[350089696,1737615032230,-1472.14757156,0.00018387,2]
[350089697,1737615032243,-947.31015434,0.00018387,2]
[350089698,1737615032371,-4793.7,0.00018387,2]
[350089699,1737615032383,-826.91281953,0.00018387,2]
[350089700,1737615032393,-694.42,0.00018508,2]
[350089701,1737615032402,-250.0,0.00018772,2]
[350089702,1737615032412,-387.3388,0.000189,2]
[350089703,1737615032422,-525.565,0.000189,2]
[350089704,1737615032432,-1000.0,0.00019,2]
[350089705,1737615032441,-219.38322102,0.00019,2]
[350089706,1737615032598,-430.61677898,0.00019,2]
[350089707,1737615032608,-524.699483,0.00019078,2]
[350089708,1737615032618,-3903.0,0.0001909,2]
[350089709,1737615032627,-150.0,0.0001909,2]
[350089710,1737615032638,-2468.7826,0.0001911,2]
[350089711,1737615032647,-500.0,0.00019178,2]
[350089712,1737615032659,-500.0,0.00019178,2]
[350089713,1737615032668,-500.0,0.00019178,2]
[350089714,1737615032677,-500.0,0.00019178,2]
[350089715,1737615032687,-500.0,0.00019178,2]
[350089716,1737615032697,-500.0,0.00019178,2]
[350089717,1737615032706,-500.0,0.00019178,2]
[350089718,1737615032716,-500.0,0.00019178,2]
[350089719,1737615032727,-500.0,0.00019178,2]
[350089720,1737615032736,-195.10519094,0.00019178,2]
[350089721,1737615032745,-519.05041613,0.00019178,2]
[350089722,1737615032756,-500.0,0.00019178,2]
[350089723,1737615032771,-500.0,0.00019178,2]
[350089724,1737615032781,-500.0,0.00019178,2]
[350089725,1737615032790,-579.74,0.00019178,2]
[350089726,1737615032799,-500.0,0.00019178,2]
[350089727,1737615032808,-500.0,0.00019178,2]
[350089729,1737615032818,-500.0,0.00019178,2]
[350089731,1737615032827,-500.0,0.00019178,2]
[350089733,1737615032837,-500.0,0.00019178,2]
[350089735,1737615032846,-500.0,0.00019178,2]
[350089737,1737615032855,-500.0,0.00019178,2]
[350089739,1737615032864,-510.02,0.00019178,2]
[350089741,1737615032873,-500.0,0.00019178,2]
[350089743,1737615032883,-500.0,0.00019178,2]
[350089745,1737615032892,-500.0,0.00019178,2]
[350089747,1737615032901,-500.0,0.00019178,2]
[350089749,1737615032910,-500.0,0.00019178,2]
[350089751,1737615032919,-500.0,0.00019178,2]
[350089753,1737615032928,-500.0,0.00019178,2]
[350089755,1737615032938,-500.0,0.00019178,2]
[350089757,1737615032947,-500.0,0.00019178,2]
[350089759,1737615032956,-500.0,0.00019178,2]
[350089761,1737615032965,-500.0,0.00019178,2]
[350089763,1737615032975,-521.57111275,0.00019178,2]
[350089765,1737615032984,-450.59819615,0.00019178,2]
[350089767,1737615032993,-500.0,0.00019178,2]
[350089769,1737615033002,-500.0,0.00019178,2]
[350089771,1737615033012,-500.0,0.00019178,2]
[350089773,1737615033021,-500.0,0.00019178,2]
[350089775,1737615033031,-500.0,0.00019178,2]
[350089777,1737615033043,-500.0,0.00019178,2]
[350089779,1737615033059,-500.0,0.00019178,2]
[350089782,1737615033068,-446.68,0.00019178,2]
[350089783,1737615033078,-500.0,0.00019178,2]
[350089786,1737615033088,-500.0,0.00019178,2]
[350089787,1737615033098,-500.0,0.00019178,2]
[350089790,1737615033108,-500.0,0.00019178,2]
[350089791,1737615033117,-500.0,0.00019178,2]
[350089794,1737615033127,-500.0,0.00019178,2]
[350089796,1737615033136,-500.0,0.00019178,2]
[350089797,1737615033145,-500.0,0.00019178,2]
[350089799,1737615033155,-500.0,0.00019178,2]
[350089801,1737615033164,-500.0,0.00019178,2]
[350089804,1737615033175,-500.0,0.00019178,2]
[350089806,1737615033184,-500.0,0.00019178,2]
[350089808,1737615033193,-731.74,0.00019178,2]
[350089810,1737615033202,-500.0,0.00019178,2]
[350089812,1737615033212,-650.64,0.00019178,2]
[350089813,1737615033221,-670.2,0.00019178,2]
[350089815,1737615033232,-500.0,0.00019178,2]
[350089818,1737615033242,-500.0,0.00019178,2]
[350089819,1737615033251,-500.0,0.00019178,2]
[350089821,1737615033260,-570.84015294,0.00019178,2]
[350089823,1737615033270,-500.0,0.00019178,2]
[350089826,1737615033281,-500.0,0.00019178,2]
[350089828,1737615033290,-1000.0,0.00019199,2]
[350089830,1737615033299,-4213.3108872,0.00019199,2]
[350089832,1737615033308,-6287.5726,0.000192,2]
[350089834,1737615033318,-173.73759134,0.000192,2]
[350089835,1737615033327,-311.10200394,0.000192,2]
[350089838,1737615033336,-1044.04062262,0.000192,2]
[350089839,1737615033346,-4213.31088711,0.00019244,2]
[350089841,1737615033356,-4213.31088711,0.00019288,2]
[350089844,1737615033366,-201.2613802,0.00019298,2]
[350089846,1737615033375,-405.37050529,0.00019298,2]
[350089847,1737615033385,-1263.47,0.00019298,2]
[350089850,1737615033395,-1277.09,0.00019298,2]
[350089852,1737615033405,-664.76,0.00019298,2]
[350089854,1737615033415,-945.33,0.00019298,2]
[350089856,1737615033425,-500.0,0.00019298,2]
[350089857,1737615033435,-500.0,0.00019298,2]
[350089859,1737615033444,-516.56,0.00019298,2]
[350089861,1737615033454,-838.14,0.00019298,2]
[350089863,1737615033463,-1417.99,0.00019298,2]
[350089865,1737615033473,-792.54,0.00019298,2]
[350089867,1737615033483,-643.03,0.00019298,2]
[350089869,1737615033492,-639.24,0.00019298,2]
[350089871,1737615033502,-1372.33,0.00019298,2]
[350089873,1737615033511,-731.18,0.00019298,2]
[350089875,1737615033521,-500.0,0.00019298,2]
[350089878,1737615033531,-603.4,0.00019298,2]
[350089880,1737615033541,-668.4,0.00019298,2]
[350089881,1737615033550,-1764.11,0.00019298,2]
[350089883,1737615033560,-500.0,0.00019298,2]
[350089885,1737615033570,-1276.6,0.00019298,2]
[350089888,1737615033580,-1728.03,0.00019298,2]
[350089890,1737615033590,-500.0,0.00019298,2]
[350089892,1737615033600,-500.0,0.00019298,2]
[350089893,1737615033610,-430.050692,0.00019299,2]
[350089895,1737615033619,-322.994065,0.00019299,2]
[350089897,1737615033629,-500.0,0.00019299,2]
[350089899,1737615033639,-500.0,0.00019299,2]
[350089901,1737615033649,-434.61613587,0.00019299,2]
[350089903,1737615033663,-500.0,0.00019299,2]
[350089905,1737615033673,-500.0,0.00019299,2]
[350089907,1737615033682,-500.0,0.00019299,2]
[350089909,1737615033692,-769.07,0.00019299,2]
[350089912,1737615033702,-500.0,0.00019299,2]
[350089914,1737615033713,-552.88,0.00019299,2]
[350089916,1737615033722,-500.0,0.00019299,2]
[350089918,1737615033731,-500.0,0.00019299,2]
[350089919,1737615033742,-500.0,0.00019299,2]
[350089921,1737615033752,-500.0,0.00019299,2]
[350089923,1737615033761,-578.73747687,0.00019299,2]
[350089925,1737615033772,-500.0,0.00019299,2]
[350089927,1737615033781,-515.17,0.00019299,2]
[350089929,1737615033791,-500.0,0.00019299,2]
[350089931,1737615033800,-500.0,0.00019299,2]
[350089953,1737615034001,-500.0,0.00019299,2]
[350089955,1737615034011,-500.0,0.00019299,2]
[350089957,1737615034021,-500.0,0.00019299,2]
[350089959,1737615034031,-500.0,0.00019299,2]
[350089961,1737615034040,-500.0,0.00019299,2]
[350089963,1737615034050,-556.98,0.00019299,2]
[350089965,1737615034060,-500.0,0.00019299,2]
[350089967,1737615034069,-500.0,0.00019299,2]
[350089969,1737615034079,-590.92,0.00019299,2]
[350089971,1737615034088,-500.0,0.00019299,2]
[350089973,1737615034098,-727.29,0.00019299,2]
[350089975,1737615034107,-500.0,0.00019299,2]
[350089977,1737615034116,-500.0,0.00019299,2]
[350089979,1737615034126,-574.95,0.00019299,2]
[350089981,1737615034135,-500.0,0.00019299,2]
[350089983,1737615034145,-500.0,0.00019299,2]
[350089985,1737615034154,-500.0,0.00019299,2]
[350089987,1737615034164,-500.0,0.00019299,2]
[350089989,1737615034173,-346.09966476,0.00019299,2]
[350089991,1737615034183,-500.0,0.00019299,2]
[350089993,1737615034193,-500.0,0.00019299,2]
[350089995,1737615034202,-500.0,0.00019299,2]
[350089997,1737615034212,-500.0,0.00019299,2]
[350089999,1737615034221,-500.0,0.00019299,2]
[350090001,1737615034231,-500.0,0.00019299,2]
[350090003,1737615034240,-500.0,0.00019299,2]
[350090005,1737615034250,-500.0,0.00019299,2]
[350090007,1737615034259,-500.0,0.00019299,2]
[350090008,1737615034269,-497.76377883,0.00019299,2]
[350090010,1737615034281,-635.25,0.00019299,2]
[350090012,1737615034291,-651.62,0.00019299,2]
[350090014,1737615034301,-592.33,0.00019299,2]
[350090016,1737615034311,-4036.04,0.00019299,2]
[350090018,1737615034321,-726.01,0.00019299,2]
[350090021,1737615034331,-1118.41,0.00019299,2]
[350090023,1737615034341,-1091.76,0.00019299,2]
[350090025,1737615034351,-779.55,0.00019299,2]
[350090026,1737615034361,-1409.97,0.00019299,2]
[350090028,1737615034370,-500.0,0.00019299,2]
[350090030,1737615034380,-550.78,0.00019299,2]
[350090032,1737615034390,-169.76791405,0.00019299,2]
[350090034,1737615034400,-502.69,0.00019299,2]
[350090036,1737615034409,-500.0,0.00019299,2]
[350090038,1737615034419,-633.27,0.00019299,2]
[350090040,1737615034429,-500.0,0.00019299,2]
[350090042,1737615034439,-403.77758572,0.00019299,2]
[350090044,1737615034449,-500.0,0.00019299,2]
[350090046,1737615034459,-1225.04,0.00019299,2]
[350090048,1737615034469,-1467.12,0.00019299,2]
[350090050,1737615034480,-1052.74,0.00019299,2]
[350090052,1737615034490,-789.77,0.00019299,2]
[350090055,1737615034500,-500.0,0.00019299,2]
[350090056,1737615034510,-2317.82,0.00019299,2]
[350090058,1737615034519,-676.74,0.00019299,2]
[350090060,1737615034531,-500.0,0.00019299,2]
[350090062,1737615034540,-2284.02,0.00019299,2]
[350090064,1737615034551,-520.28,0.00019299,2]
[350090066,1737615034561,-500.0,0.00019299,2]
[350090068,1737615034571,-1252.0,0.00019299,2]
[350090070,1737615034581,-938.89,0.00019299,2]
[350090072,1737615034591,-917.4,0.00019299,2]
[350090074,1737615034601,-623.28,0.00019299,2]
[350090076,1737615034611,-500.0,0.00019299,2]
[350090079,1737615034621,-500.0,0.00019299,2]
[350090080,1737615034630,-1030.51,0.00019299,2]
[350090082,1737615034640,-775.74,0.00019299,2]
[350090084,1737615034650,-500.0,0.00019299,2]
[350090086,1737615034665,-1300.68,0.00019299,2]
[350090088,1737615034674,-2300.0,0.00019299,2]
[350090090,1737615034685,-500.0,0.00019299,2]
[350090092,1737615034695,-500.0,0.00019299,2]
[350090094,1737615034704,-831.67,0.00019299,2]
[350090096,1737615034714,-500.0,0.00019299,2]
[350090098,1737615034723,-500.0,0.00019299,2]
[350090100,1737615034735,-1000.0,0.00019299,2]
[350090102,1737615034744,-500.0,0.00019299,2]
[350090104,1737615034754,-877.38,0.00019299,2]
[350090106,1737615034763,-758.24,0.00019299,2]
[350090108,1737615034773,-3694.31,0.00019299,2]
[350090110,1737615034783,-684.91,0.00019299,2]
[350090112,1737615034793,-1319.95,0.00019299,2]
[350090114,1737615034803,-500.0,0.00019299,2]
[350090116,1737615034813,-500.0,0.00019299,2]
[350090118,1737615034824,-500.0,0.00019299,2]
[350090120,1737615034834,-500.0,0.00019299,2]
[350090122,1737615034843,-821.89,0.00019299,2]
[350090124,1737615034852,-1621.69,0.00019299,2]
[350090126,1737615034862,-500.0,0.00019299,2]
[350090128,1737615034871,-1914.9,0.00019299,2]
[350090130,1737615034881,-1506.36,0.00019299,2]
[350090133,1737615034891,-500.0,0.00019299,2]
[350090134,1737615034900,-500.0,0.00019299,2]
[350090136,1737615034909,-605.19,0.00019299,2]
[350090138,1737615034919,-1490.98,0.00019299,2]
[350090140,1737615034928,-1769.42,0.00019299,2]
[350090143,1737615034938,-689.01,0.00019299,2]
[350090145,1737615034948,-911.11,0.00019299,2]
[350090147,1737615034958,-406.05,0.00019299,2]
[350090149,1737615034968,-500.0,0.00019299,2]
[350090151,1737615034978,-860.1,0.00019299,2]
[350090153,1737615034987,-788.96,0.00019299,2]
[350090155,1737615034997,-500.0,0.00019299,2]
[350090157,1737615035007,-1373.7,0.00019299,2]
[350090159,1737615035016,-500.0,0.00019299,2]
[350090161,1737615035026,-1810.73,0.00019299,2]
[350090162,1737615035035,-669.33,0.00019299,2]
[350090163,1737615035045,-500.0,0.00019299,2]
[350090164,1737615035055,-500.0,0.00019299,2]
[350090165,1737615035065,-500.0,0.00019299,2]
[350090166,1737615035075,-500.0,0.00019299,2]
[350090167,1737615035084,-500.0,0.00019299,2]
[350090168,1737615035094,-500.0,0.00019299,2]
[350090169,1737615035104,-500.0,0.00019299,2]
[350090170,1737615035113,-500.0,0.00019299,2]
[350090172,1737615035122,-500.0,0.00019299,2]
[350090174,1737615035131,-500.0,0.00019299,2]
[350090176,1737615035141,-500.0,0.00019299,2]
[350090178,1737615035151,-500.0,0.00019299,2]
[350090180,1737615035160,-611.32,0.00019299,2]
[350090182,1737615035169,-500.0,0.00019299,2]
[350090184,1737615035179,-548.93,0.00019299,2]
[350090186,1737615035188,-844.29,0.00019299,2]
[350090188,1737615035197,-703.15,0.00019299,2]
[350090190,1737615035207,-500.0,0.00019299,2]
[350090192,1737615035216,-327.93062294,0.00019299,2]
[350090194,1737615035225,-500.0,0.00019299,2]
[350090196,1737615035234,-1002.43,0.00019299,2]
[350090198,1737615035243,-537.53788601,0.00019299,2]
[350090200,1737615035253,-572.02,0.00019299,2]
[350090202,1737615035262,-1182.58,0.00019299,2]
[350090204,1737615035272,-943.4,0.00019299,2]
[350090206,1737615035281,-500.0,0.00019299,2]
[350090208,1737615035291,-1920.16,0.00019299,2]
[350090210,1737615035300,-500.0,0.00019299,2]
[350090212,1737615035309,-1365.06,0.00019299,2]
[350090214,1737615035319,-1121151.01404027,0.000193,2]
[350090478,1737615037976,-890.17,0.0001909,2]
[350090480,1737615037986,-1046.27,0.00019298,2]
[350090482,1737615037996,-16948.27271618,0.000193,2]
[350090494,1737615038109,-857.39151762,0.000193,2]
[350090500,1737615038152,-511.90603702,0.000193,2]
[350090502,1737615038163,-468.40396298,0.000193,2]
[350090669,1737615039981,-527.83,0.00019298,2]
[350090670,1737615039991,-358.92,0.000193,2]
[350090728,1737615046037,-150.0,0.00018727,2]
[350090729,1737615046049,-747.07,0.00019299,2]
[350090730,1737615046060,-131.0571,0.00019299,2]
[350090731,1737615046170,-940.7529,0.00019299,2]
[350090732,1737615046180,-2221.25,0.00019299,2]
[350090733,1737615046190,-17430.27709999,0.000193,2]
[350090734,1737615101708,256.99290432,0.000153,2]
[350090735,1737615101731,245.0,0.000153,2]
[350090736,1737615101754,249.4328749,0.000153,2]
[350090738,1737615934142,-161.4,0.00010137,2]
[350090739,1737615934164,-196.35,0.00012329,2]
[350090740,1737615934187,-175.14,0.00014805,2]
[350090741,1737615934210,-96.60283893,0.00015242,2]
[350090742,1737616033112,-103.81009238,0.00015242,2]
[350090743,1737616033133,-720.47350867,0.000153,2]
[350090744,1737616042101,-955.52649133,0.000153,2]
[350090745,1737616042126,-62.3390006,0.00015342,2]
[350090746,1737616053089,-230.39947592,0.00015342,2]
[350090747,1737616149092,-196.35,0.00012329,2]
[350090748,1737616149115,-193.07247272,0.00015342,2]
[350090749,1737616149213,-14.18905076,0.00015342,2]
[350090750,1737616149249,-952.67,0.00015969,2]
[350090751,1737616149274,-161.4,0.00016813,2]
[350090752,1737616158101,-250.0,0.00017734,2]
[350090753,1737616158122,-250.0,0.00017752,2]
[350090756,1737616232245,-1099.97243844,0.00017758,2]
[350090758,1737616232340,-22800.02756156,0.00017758,2]
[350090759,1737616232350,-174.41,0.00017762,2]
[350090760,1737616232359,-710.97,0.00017765,2]
[350090761,1737616232369,-1852.42,0.00017796,2]
[350090762,1737616232379,-196.96,0.00017847,2]
[350090763,1737616232388,-700.91,0.00017967,7]
[350090764,1737616232398,-700.91,0.00017967,7]
[350090765,1737616232407,-700.91,0.00017967,7]
[350090766,1737616232417,-700.91,0.00017967,7]
[350090767,1737616232427,-1000.0,0.00018033,2]
[350090768,1737616232437,-167.14,0.00018082,2]
[350090769,1737616232446,-250.0,0.00018124,2]
[350090770,1737616232456,-500.0,0.00018164,2]
[350090771,1737616232466,-943.89,0.00018167,2]
[350090772,1737616232475,-3413.64254873,0.00018185,2]
[350090773,1737616232484,-952.67,0.00018232,2]
[350090774,1737616232494,-700.91,0.00018241,7]
[350090775,1737616232503,-700.91,0.00018241,7]
[350090776,1737616232512,-800.24,0.00018248,2]
[350090777,1737616232522,-175.57,0.00018289,30]
[350090778,1737616232532,-227.32,0.00018316,2]
[350090779,1737616232541,-160.949,0.0001834,2]
[350090780,1737616232551,-12689.0,0.00018443,2]
[350090781,1737616232560,-3731.87,0.00018444,2]
[350090782,1737616232571,-700.91,0.00018515,7]
[350090783,1737616232581,-700.91,0.00018515,7]
[350090784,1737616232590,-815.03319696,0.00018593,2]
[350090785,1737616232599,-152.90305607,0.00018629,2]
[350090786,1737616232608,-822.045,0.00018629,2]
[350090787,1737616232618,-448.211,0.00018665,2]
[350090788,1737616232627,-150.0,0.00018665,2]
[350090789,1737616232637,-700.91,0.00018789,7]
[350090790,1737616232647,-700.91,0.00018789,7]
[350090791,1737616232657,-755.07242511,0.000189,2]
[350090792,1737616232667,-430.3178249,0.00018976,2]
[350090793,1737616232676,-8970.0,0.00019,2]
[350090794,1737616232686,-3957.47885288,0.00019,2]
[350090795,1737616232695,-755.07242483,0.00019003,2]
[350090796,1737616232705,-1025.92695453,0.00019029,2]
[350090797,1737616232714,-700.91,0.00019063,7]
[350090798,1737616232724,-700.91,0.00019063,7]
[350090799,1737616232733,-201.70595578,0.00019099,2]
[350090800,1737616232743,-1550.7791,0.00019099,2]
[350090801,1737616232752,-5000.0,0.00019099,2]
[350090802,1737616232762,-755.07242483,0.00019107,2]
[350090803,1737616232771,-2057.31884,0.0001911,2]
[350090804,1737616232781,-155.77861115,0.00019133,2]
[350090805,1737616232791,-500.0,0.00019198,2]
[350090806,1737616232800,-500.0,0.00019198,2]